bitfinex-derivatives/quotes_SOLF0:USTF0_20250509
["timestamp","ask_amount","ask_price","bid_price","bid_amount"]
[1746756907932,6.1321,163.1,163.08,1.0]
[1746756908126,28.46,163.12,163.08,1.0]
[1746756908322,28.46,163.15,163.08,29.42]
[1746756908831,6.131,163.13,163.08,35.5527]
[1746756909024,28.46,163.15,163.08,35.50669784]
[1746756909221,56.88,163.18,163.09,1.9769]
[1746756909925,6.1307,163.14,163.1,6.1318]
[1746756910732,6.1303,163.15,163.1,6.1318]
[1746756911234,6.1306,163.14,163.1,6.1318]
[1746756911531,56.88,163.18,163.09,1.9769]
[1746756911719,56.88,163.18,163.08,1.0]
[1746756911921,6.1325,163.09,163.08,1.0]
[1746756913925,28.46,163.12,163.08,1.0]
[1746756914830,6.1325,163.09,163.08,1.0]
[1746756917529,28.46,163.12,163.08,1.0]
[1746756919928,6.1325,163.09,163.08,1.0]
[1746756921237,6.1346,163.04,163.01,3.9833]
[1746756921432,6.1346,163.04,163.01,32.3833]
[1746756923438,6.1346,163.04,163.01,3.9833]
[1746756923630,6.1348,163.03,163.0,113.64713796]
[1746756925438,28.4,163.08,163.0,113.64713796]
[1746756925639,28.4,163.07,162.98,28.4]
[1746756926033,6.1353,163.02,162.98,28.4]
[1746756927131,6.1353,163.02,162.97,10.1363]
[1746756927337,28.4,163.04,162.97,32.3796]
[1746756927539,28.4,163.09,162.99,6.08669784]
[1746756927842,28.4,163.09,162.97,32.3796]
[1746756927843,28.4,163.09,163.02,6.08669784]
[1746756928045,28.4,163.09,163.03,6.1344]
[1746756928231,28.4,163.09,163.02,34.46669784]
[1746756928435,56.78,163.12,163.05,6.1336]
[1746756929441,6.1324,163.1,163.05,6.1336]
[1746756929739,56.78,163.12,163.05,6.1336]
[1746756929936,6.1325,163.09,163.05,6.1336]
[1746756930842,6.1322,163.1,163.06,6.1334]
[1746756931036,56.78,163.12,163.06,6.1334]
[1746756931341,6.132,163.11,163.06,6.1334]
[1746756931842,6.1324,163.1,163.06,6.1334]
[1746756932037,56.78,163.12,163.05,6.1339]
[1746756932340,56.78,163.12,163.04,30.4682]
[1746756933141,6.1324,163.1,163.06,6.1336]
[1746756934544,6.1325,163.09,163.06,6.1336]
[1746756934842,6.1325,163.09,163.05,6.1339]
[1746756935448,6.1325,163.09,163.06,6.1336]
[1746756935653,6.1322,163.1,163.06,6.1336]
[1746756935939,28.4,163.14,163.08,6.08669784]
[1746756936144,28.4,163.14,163.08,34.44669784]
[1746756936343,28.4,163.14,163.08,28.36]
[1746756937045,28.4,163.14,163.05,34.44669784]
[1746756938045,6.1324,163.1,163.05,40.58059784]
[1746756938845,6.1325,163.09,163.05,40.58059784]
[1746756939046,28.4,163.14,163.06,6.1335]
[1746756939242,357.75656,163.17,163.05,34.44669784]
[1746756939443,6.1311,163.13,163.05,34.44669784]
[1746756939643,56.76,163.16,163.08,6.1325]
[1746756940245,56.76,163.16,163.07,6.1332]
[1746756940447,56.76,163.16,163.05,34.44669784]
[1746756940840,6.132,163.11,163.06,6.1333]
[1746756941646,6.132,163.11,163.07,6.1331]
[1746756942144,56.76,163.16,163.05,34.44669784]
[1746756942745,6.1327,163.09,163.05,40.58059784]
[1746756943142,6.1327,163.09,163.05,34.4939]
[1746756943745,6.1322,163.1,163.05,28.36]
[1746756944046,28.4,163.12,163.05,28.36]
[1746756944243,6.1323,163.1,163.06,6.1335]
[1746756944449,28.4,163.12,163.05,28.36]
[1746756944950,6.1327,163.09,163.05,6.1338]
[1746756945450,28.4,163.12,163.04,36.6224]
[1746756945852,56.74,163.12,163.04,8.2224]
[1746756946149,56.74,163.12,163.03,1.9131]
[1746756946350,6.08669784,163.11,162.99,28.34]
[1746756946547,6.1348,163.03,162.99,28.34]
[1746756946748,28.4,163.06,162.98,28.4]
[1746756946946,6.135,163.03,162.98,56.74]
[1746756947953,6.1344,163.04,162.98,56.74]
[1746756948251,28.4,163.06,162.98,56.74]
[1746756948550,6.1343,163.05,163.0,6.1355]
[1746756948948,28.32,163.07,162.98,56.74]
[1746756949155,4.0877,163.11,162.98,66.49717887]
[1746756949346,28.34,163.1,162.98,66.49717887]
[1746756949854,28.34,163.1,163.05,6.1337]
[1746756950352,6.1325,163.09,163.04,6.1342]
[1746756950554,28.34,163.1,163.04,6.1342]
[1746756950757,28.34,163.1,163.03,28.34]
[1746756950950,28.34,163.1,163.03,32.4034]
[1746756951150,34.4722,163.1,163.05,6.1339]
[1746756951550,529.84,163.12,163.06,6.1335]
[1746756951756,6.1318,163.11,163.06,6.1335]
[1746756951954,558.18,163.12,163.04,1.8986]
[1746756952154,6.1322,163.1,163.04,1.8986]
[1746756952556,558.18,163.12,163.04,1.8986]
[1746756952751,360.76336,163.18,163.04,1.8986]
[1746756952945,56.68,163.17,163.04,1.8986]
[1746756953260,6.1327,163.09,163.04,8.0326]
[1746756953457,28.34,163.12,163.04,1.8986]
[1746756953755,28.34,163.13,163.04,1.8986]
[1746756953756,56.68,163.13,163.04,1.8986]
[1746756954262,6.1318,163.11,163.06,6.1335]
[1746756954561,6.1318,163.11,163.04,1.8986]
[1746756955058,6.1318,163.11,163.06,6.1335]
[1746756955256,56.68,163.13,163.04,1.8986]
[1746756955562,56.68,163.13,163.05,34.4537]
[1746756955755,56.68,163.13,163.05,28.32]
[1746756956857,6.1322,163.1,163.05,34.4539]
[1746756957057,56.68,163.13,163.05,28.32]
[1746756957358,6.1318,163.11,163.06,6.1335]
[1746756957861,6.1318,163.11,163.07,6.1332]
[1746756958050,6.1314,163.12,163.05,28.32]
[1746756958960,6.1314,163.12,163.08,6.1327]
[1746756959155,56.68,163.13,163.08,6.1327]
[1746756959356,56.68,163.13,163.05,28.32]
[1746756959556,56.68,163.13,163.08,6.1328]
[1746756959861,62.8112,163.13,163.08,6.1328]
[1746756960859,34.4712,163.13,163.09,6.1322]
[1746756961055,28.34,163.13,163.05,28.32]
[1746756961256,56.64,163.16,163.06,28.32]
[1746756961464,6.1309,163.14,163.09,6.1322]
[1746756961759,6.1309,163.14,163.06,28.32]
[1746756962161,6.1309,163.14,163.09,6.1322]
[1746756962762,6.1309,163.14,163.1,6.132]
[1746756964160,28.32,163.16,163.1,28.3]
[1746756964361,130.26864524,163.19,163.1,28.3]
[1746756964562,130.26864524,163.19,163.11,2.0946]
[1746756965663,130.26864524,163.19,163.11,6.032]
[1746756966672,136.39764524,163.19,163.11,6.032]
[1746756966861,28.32,163.22,163.11,6.032]
[1746756967066,529.86,163.28,163.14,9.75717887]
[1746756967263,28.32,163.27,163.18,6.1289]
[1746756967464,28.32,163.27,163.19,28.3]
[1746756968168,28.32,163.27,163.19,34.4287]
[1746756968366,6.1267,163.25,163.19,34.4287]
[1746756968756,0.9762,163.31,163.22,6.1273]
[1746756968956,28.32,163.32,163.23,56.62]
[1746756969267,28.32,163.32,163.26,6.126]
[1746756969566,28.32,163.32,163.27,28.3]
[1746756969867,144.87433845,163.34,163.27,28.3]
[1746756970569,28.32,163.35,163.27,28.3]
[1746756970570,6.1235,163.33,163.27,28.3]
[1746756970964,6.1235,163.33,163.27,56.62]
[1746756971363,6.1235,163.33,163.27,58.552]
[1746756972167,6.1241,163.32,163.27,58.552]
[1746756972465,28.32,163.35,163.27,58.552]
[1746756972864,90.83120307,163.4,163.27,58.552]
[1746756973068,28.3,163.38,163.28,4.0487]
[1746756974063,6.123,163.35,163.29,6.1246]
[1746756974269,28.3,163.38,163.28,4.0487]
[1746756974963,4.9474,163.44,163.28,4.0487]
[1746756975163,28.3,163.41,163.31,6.1241]
[1746756975365,28.3,163.41,163.32,56.56]
[1746756975665,6.1225,163.36,163.32,56.56]
[1746756976068,28.3,163.41,163.32,56.56]
[1746756977368,6.1225,163.36,163.32,56.56]
[1746756977767,28.3,163.41,163.32,56.56]
[1746756979463,33.2074,163.44,163.32,56.56]
[1746756979464,32.2143,163.44,163.32,56.56]
[1746756979862,28.24,163.44,163.34,9.75717887]
[1746756980063,6.1205,163.41,163.37,6.1216]
[1746756980269,6.1205,163.41,163.38,28.24]
[1746756980864,28.24,163.47,163.38,28.24]
[1746756981869,28.24,163.47,163.34,28.24]
[1746756982971,6.1213,163.39,163.34,28.24]
[1746756983472,28.24,163.41,163.34,28.24]
[1746756984572,28.24,163.41,163.36,6.122]
[1746756984972,28.24,163.41,163.34,28.24]
[1746756985172,6.1197,163.43,163.34,28.24]
[1746756985372,28.22,163.44,163.34,28.24]
[1746756985670,28.22,163.44,163.38,6.1215]
[1746756986068,28.22,163.44,163.34,28.24]
[1746756986483,4.0554,163.43,163.34,28.24]
[1746756986772,4.0554,163.43,163.34,34.3628]
[1746756987173,4.0554,163.43,163.34,28.24]
[1746756987375,4.0554,163.43,163.31,34.3439]
[1746756987563,0.9713,163.42,163.31,28.22]
[1746756987767,6.1216,163.38,163.33,6.1231]
[1746756987970,28.22,163.39,163.33,6.1231]
[1746756988969,6.1219,163.37,163.32,6.1237]
[1746756989171,6.1219,163.37,163.31,28.22]
[1746756989370,28.22,163.39,163.31,28.22]
[1746756990068,6.1226,163.36,163.31,6.1239]
[1746756990377,6.1226,163.36,163.3,28.22]
[1746756990577,6.1224,163.36,163.32,6.1237]
[1746756990874,28.22,163.39,163.3,28.22]
[1746756991179,28.22,163.39,163.31,6.1241]
[1746756991978,6.1226,163.36,163.32,6.1238]
[1746756992579,28.22,163.39,163.31,6.1241]
[1746756992778,28.22,163.39,163.31,28.22]
[1746756994382,6.1217,163.38,163.34,6.1228]
[1746756995181,6.1219,163.37,163.33,6.1234]
[1746756995485,28.22,163.39,163.33,6.1234]
[1746756995780,6.1218,163.38,163.33,6.1234]
[1746756997376,6.1218,163.38,163.34,6.123]
[1746756998584,34.3413,163.39,163.34,6.123]
[1746756998783,34.3413,163.39,163.35,6.1226]
[1746756998982,34.3413,163.39,163.31,28.22]
[1746756999179,28.22,163.39,163.31,28.22]
[1746756999383,6.1218,163.38,163.31,28.22]
[1746756999982,6.1218,163.38,163.33,6.1231]
[1746757000984,6.1218,163.38,163.34,6.123]
[1746757002284,34.3413,163.39,163.34,6.123]
[1746757002584,34.3413,163.39,163.35,6.1226]
[1746757004784,34.3413,163.39,163.31,28.22]
[1746757004785,34.3413,163.39,163.34,6.1229]
[1746757004990,6.1217,163.38,163.34,6.1229]
[1746757005284,28.22,163.39,163.31,28.22]
[1746757006888,6.1216,163.38,163.34,6.1228]
[1746757007388,34.3413,163.39,163.34,6.1228]
[1746757008089,34.3413,163.39,163.35,6.1225]
[1746757008290,28.22,163.39,163.31,28.22]
[1746757008588,28.22,163.39,163.35,6.1224]
[1746757008789,34.3415,163.39,163.35,6.1224]
[1746757010086,28.22,163.39,163.31,28.22]
[1746757010289,28.18,163.42,163.32,37.93717887]
[1746757010591,6.1215,163.39,163.34,6.123]
[1746757010887,28.18,163.42,163.35,28.18]
[1746757012493,28.18,163.42,163.37,6.1219]
[1746757012494,34.3002,163.42,163.37,6.1219]
[1746757012793,34.3002,163.42,163.35,28.18]
[1746757012989,34.3002,163.42,163.37,6.1216]
[1746757013596,6.1196,163.44,163.35,28.18]
[1746757013892,6.1196,163.44,163.36,34.1887]
[1746757014088,28.18,163.45,163.36,34.1887]
[1746757014390,28.18,163.53,163.38,9.75717887]
[1746757014594,28.18,163.53,163.39,28.18]
[1746757014893,28.18,163.53,163.4,28.18]
[1746757015090,4.0571,163.54,163.4,28.18]
[1746757015394,6.1168,163.51,163.4,28.18]
[1746757015799,4.0571,163.54,163.4,28.18]
[1746757016695,4.0571,163.54,163.43,6.1193]
[1746757016992,4.0571,163.54,163.44,28.18]
[1746757017192,6.1181,163.48,163.44,28.18]
[1746757018294,28.18,163.52,163.44,28.18]
[1746757018593,28.18,163.52,163.43,6.1197]
[1746757018594,28.18,163.52,163.42,28.18]
[1746757018894,6.1193,163.45,163.42,28.18]
[1746757020302,28.18,163.48,163.37,28.18]
[1746757020594,30.2088,163.48,163.38,28.18]
[1746757020793,6.1192,163.45,163.38,28.18]
[1746757021184,28.18,163.47,163.38,28.18]
[1746757021385,6.1194,163.44,163.38,28.18]
[1746757021597,28.18,163.47,163.38,28.18]
[1746757023096,6.1196,163.44,163.4,6.1205]
[1746757023296,6.1196,163.44,163.38,28.18]
[1746757024096,6.1196,163.44,163.39,6.1209]
[1746757024791,6.1189,163.46,163.38,28.18]
[1746757025595,6.1189,163.46,163.41,6.1202]
[1746757025793,6.1183,163.47,163.42,28.16]
[1746757026097,28.18,163.5,163.42,28.16]
[1746757026296,28.18,163.5,163.43,5.7822]
[1746757026490,28.18,163.5,163.43,11.9018]
[1746757026891,6.1179,163.48,163.43,11.9018]
[1746757027994,6.1179,163.48,163.44,6.1193]
[1746757028697,6.1179,163.48,163.43,11.9018]
[1746757029401,6.1175,163.49,163.44,6.1192]
[1746757029602,28.18,163.5,163.43,6.7822]
[1746757029800,28.16,163.54,163.43,6.7822]
[1746757030295,6.1168,163.51,163.43,6.7822]
[1746757030500,28.16,163.54,163.43,6.7822]
[1746757030703,6.1168,163.51,163.46,6.1184]
[1746757030890,28.16,163.54,163.46,28.16]
[1746757031294,6.1163,163.53,163.48,6.1176]
[1746757031796,6.1164,163.52,163.48,6.1176]
[1746757032400,6.1164,163.52,163.47,6.1181]
[1746757032597,28.16,163.53,163.44,28.16]
[1746757032996,39.82727887,163.53,163.44,28.16]
[1746757033199,39.82727887,163.53,163.43,1.0]
[1746757033401,0.9712,163.52,163.43,1.0]
[1746757033898,6.1193,163.44,163.43,1.0]
[1746757034998,28.16,163.47,163.43,1.0]
[1746757035608,6.1193,163.44,163.43,1.0]
[1746757036904,6.1205,163.41,163.37,6.1219]
[1746757037301,9.75717887,163.49,163.36,28.16]
[1746757037508,56.3,163.48,163.36,28.16]
[1746757037808,56.3,163.48,163.37,6.1219]
[1746757038510,6.1204,163.42,163.37,6.1219]
[1746757039009,28.14,163.44,163.37,6.1219]
[1746757039305,6.1204,163.42,163.37,6.1219]
[1746757039608,6.1204,163.42,163.36,28.16]
[1746757039906,6.1205,163.41,163.36,28.16]
[1746757040207,6.1211,163.4,163.35,34.2627]
[1746757040708,6.1205,163.41,163.35,28.14]
[1746757041007,28.14,163.43,163.35,28.14]
[1746757042703,28.14,163.43,163.38,6.1215]
[1746757043308,6.1204,163.41,163.37,6.1218]
[1746757043497,28.14,163.43,163.33,30.1382]
[1746757043702,28.14,163.43,163.33,58.2782]
[1746757044704,6.1216,163.38,163.34,6.1228]
[1746757045204,6.122,163.37,163.34,6.1228]
[1746757045409,28.14,163.39,163.31,3.9267]
[1746757045710,28.14,163.39,163.3,28.14]
[1746757045903,28.14,163.39,163.3,56.28]
[1746757046409,28.14,163.39,163.3,60.3735]
[1746757046610,6.1222,163.37,163.3,60.3735]
[1746757047508,6.1222,163.37,163.32,6.1238]
[1746757047708,6.1224,163.36,163.32,6.1238]
[1746757048106,6.122,163.37,163.33,6.1234]
[1746757049409,6.122,163.37,163.34,6.123]
[1746757050106,6.122,163.37,163.33,6.1234]
[1746757050910,28.14,163.39,163.33,6.1234]
[1746757051613,28.14,163.39,163.34,6.1231]
[1746757052513,6.1217,163.38,163.34,6.1231]
[1746757053707,6.122,163.37,163.34,6.1231]
[1746757054010,6.122,163.37,163.33,6.1233]
[1746757054613,6.122,163.37,163.34,6.1231]
[1746757055314,6.1217,163.38,163.34,6.1231]
[1746757055503,28.16,163.41,163.34,28.16]
[1746757056210,34.2805,163.41,163.34,28.16]
[1746757056913,34.2805,163.41,163.37,6.1216]
[1746757057112,6.12,163.43,163.34,56.32]
[1746757057307,6.12,163.43,163.35,2.068]
[1746757057512,6.1201,163.42,163.38,6.1213]
[1746757057715,30.1311,163.44,163.35,2.068]
[1746757058114,6.1207,163.41,163.36,6.122]
[1746757058614,30.1311,163.44,163.35,8.1906]
[1746757060016,6.1212,163.39,163.35,8.1906]
[1746757061006,30.1311,163.44,163.3,4.0935]
[1746757061007,1.9711,163.44,163.3,4.0935]
[1746757061214,30.1125,163.43,163.31,28.14]
[1746757061416,28.14,163.42,163.3,32.2535]
[1746757061717,6.1234,163.34,163.3,34.2643]
[1746757062319,6.1234,163.33,163.3,28.14]
[1746757063720,6.1232,163.34,163.3,34.2645]
[1746757064220,6.1235,163.33,163.3,28.14]
[1746757065220,6.1235,163.33,163.3,34.2645]
[1746757065418,6.1235,163.33,163.3,28.14]
[1746757066116,28.16,163.36,163.24,30.1036]
[1746757066315,28.16,163.36,163.24,1.9436]
[1746757066616,28.16,163.36,163.23,3.8991]
[1746757066617,566.91717887,163.36,163.23,6.1272]
[1746757066819,566.91717887,163.36,163.22,28.2]
[1746757067019,356.77796,163.35,163.22,28.2]
[1746757067219,6.1271,163.24,163.22,28.2]
[1746757067415,6.1271,163.24,163.19,34.3286]
[1746757067611,28.16,163.27,163.19,28.2]
[1746757068621,28.16,163.27,163.22,6.1272]
[1746757069224,6.1261,163.26,163.22,6.1272]
[1746757070821,28.16,163.27,163.19,28.2]
[1746757071417,28.16,163.27,163.23,6.1269]
[1746757071617,28.16,163.27,163.19,28.2]
[1746757071821,6.1266,163.25,163.2,6.128]
[1746757072122,28.16,163.27,163.2,6.128]
[1746757072523,28.16,163.27,163.19,28.2]
[1746757072725,28.16,163.27,163.18,32.3774]
[1746757073120,4.0303,163.28,163.22,6.1275]
[1746757073322,28.22,163.28,163.18,32.3774]
[1746757073518,6.1258,163.27,163.19,28.22]
[1746757073725,28.22,163.28,163.22,6.1273]
[1746757074124,6.1262,163.26,163.22,6.1273]
[1746757074326,28.22,163.28,163.19,28.22]
[1746757075127,34.3456,163.28,163.19,28.22]
[1746757075629,28.22,163.28,163.2,2.0098]
[1746757075829,28.22,163.28,163.21,28.34]
[1746757076028,34.3454,163.28,163.23,6.1269]
[1746757076631,28.22,163.28,163.22,6.1275]
[1746757077228,6.1264,163.26,163.22,6.1275]
[1746757077429,28.22,163.28,163.23,6.1272]
[1746757077829,6.126,163.27,163.23,6.1272]
[1746757078731,34.3454,163.28,163.24,6.1267]
[1746757078929,28.22,163.28,163.21,28.34]
[1746757079231,28.22,163.31,163.27,6.1257]
[1746757079433,28.22,163.31,163.25,28.32]
[1746757079625,28.22,163.34,163.25,28.32]
[1746757079828,28.22,163.34,163.26,3.9913]
[1746757081731,6.1236,163.33,163.29,6.1248]
[1746757082524,28.22,163.34,163.26,3.9913]
[1746757083131,529.0,163.36,163.31,6.1238]
[1746757083835,6.123,163.35,163.31,6.1238]
[1746757084029,529.0,163.36,163.3,34.4845]
[1746757084234,529.0,163.36,163.3,28.36]
[1746757084429,529.0,163.36,163.27,58.6224]
[1746757085634,6.1234,163.34,163.31,6.1242]
[1746757085833,529.0,163.36,163.31,6.1242]
[1746757086133,529.0,163.36,163.3,6.1244]
[1746757086333,529.0,163.36,163.27,58.6224]
[1746757086934,28.22,163.37,163.27,68.37957887]
[1746757087331,34.3421,163.37,163.32,6.1236]
[1746757087526,34.3421,163.37,163.32,28.4]
[1746757088239,34.3421,163.37,163.33,6.1232]
[1746757088437,28.22,163.37,163.32,28.4]
[1746757088637,28.22,163.4,163.32,28.4]
[1746757089341,28.22,163.4,163.32,30.2915]
[1746757089538,28.22,163.4,163.33,1.9638]
[1746757089838,6.1216,163.38,163.34,6.123]
[1746757090039,28.22,163.4,163.34,6.123]
[1746757090239,6.1215,163.39,163.34,6.123]
[1746757090538,28.22,163.4,163.33,8.0872]
[1746757090840,6.1216,163.38,163.33,8.0872]
[1746757091138,28.22,163.4,163.33,8.0872]
[1746757091341,28.22,163.4,163.33,1.9638]
[1746757091539,28.22,163.4,163.27,11.79957887]
[1746757091740,28.22,163.4,163.28,56.64]
[1746757091940,28.42,163.39,163.29,28.42]
[1746757092439,28.42,163.39,163.33,1.0]
[1746757092942,6.1231,163.34,163.33,1.0]
[1746757095343,28.4,163.35,163.26,28.4]
[1746757095937,356.77796,163.42,163.26,38.15717887]
[1746757096136,28.22,163.41,163.26,38.15717887]
[1746757096439,6.1218,163.38,163.34,6.123]
[1746757097342,6.1218,163.38,163.33,28.44]
[1746757097548,28.22,163.41,163.33,28.44]
[1746757097940,6.1218,163.38,163.33,34.5632]
[1746757098142,28.22,163.41,163.33,34.5632]
[1746757098646,6.122,163.37,163.33,34.5632]
[1746757099046,28.22,163.41,163.33,34.5632]
[1746757099247,6.1223,163.37,163.33,34.5632]
[1746757099548,28.22,163.41,163.33,28.44]
[1746757100351,28.22,163.41,163.33,34.5633]
[1746757100847,28.22,163.41,163.33,28.44]
[1746757101349,6.1222,163.37,163.33,28.44]
[1746757102249,6.1222,163.37,163.33,34.5632]
[1746757103446,6.1224,163.36,163.33,34.5632]
[1746757103750,6.1224,163.36,163.33,28.44]
[1746757104348,6.1221,163.37,163.33,34.5634]
[1746757104649,6.1221,163.37,163.33,28.44]
[1746757105252,6.1217,163.38,163.34,6.123]
[1746757105451,28.22,163.41,163.33,28.44]
[1746757105951,6.1216,163.38,163.34,6.1228]
[1746757106148,6.1216,163.38,163.33,28.44]
[1746757106349,6.1216,163.38,163.34,6.123]
[1746757108549,6.1216,163.38,163.33,28.44]
[1746757110354,6.122,163.37,163.33,28.44]
[1746757110752,28.22,163.41,163.34,6.123]
[1746757111052,6.1216,163.38,163.34,6.123]
[1746757112356,6.122,163.37,163.34,6.123]
[1746757112554,6.122,163.37,163.33,34.5633]
[1746757114054,6.1224,163.36,163.33,34.5633]
[1746757115653,6.1224,163.36,163.33,28.44]
[1746757115858,62.59234202,163.39,163.27,34.43234202]
[1746757116056,62.59234202,163.39,163.28,28.16]
[1746757116357,62.59234202,163.39,163.29,6.1248]
[1746757116758,62.59234202,163.39,163.28,28.16]
[1746757117058,56.52,163.39,163.28,28.16]
[1746757117356,6.1226,163.36,163.32,6.1235]
[1746757117658,6.1226,163.36,163.3,6.07234202]
[1746757117859,6.1218,163.38,163.34,6.123]
[1746757118157,28.36,163.39,163.3,6.07234202]
[1746757118457,34.4815,163.39,163.35,6.1224]
[1746757118854,28.36,163.39,163.32,1.9929]
[1746757119055,6.1218,163.38,163.34,6.123]
[1746757119356,28.36,163.39,163.32,1.9929]
[1746757119958,6.122,163.37,163.33,6.1233]
[1746757120348,28.36,163.39,163.32,1.9929]
[1746757120555,28.36,163.39,163.34,6.1228]
[1746757120753,28.36,163.39,163.32,1.9929]
[1746757121059,6.122,163.37,163.33,6.1234]
[1746757121861,6.1217,163.38,163.34,6.1229]
[1746757122060,28.36,163.39,163.32,1.9929]
[1746757122456,34.4813,163.39,163.35,6.1224]
[1746757122661,28.36,163.39,163.35,6.1224]
[1746757122957,28.36,163.39,163.34,6.1229]
[1746757123559,28.36,163.39,163.32,1.9929]
[1746757123753,28.36,163.42,163.32,1.9929]
[1746757123951,6.1212,163.39,163.34,6.1228]
[1746757124250,6.1212,163.39,163.34,28.16]
[1746757124850,6.1212,163.39,163.35,6.1226]
[1746757125050,6.1216,163.38,163.34,28.16]
[1746757125251,28.36,163.42,163.34,28.16]
[1746757126764,6.1221,163.37,163.34,28.16]
[1746757127463,6.1216,163.38,163.34,34.283]
[1746757128059,6.1216,163.38,163.35,6.1226]
[1746757128363,6.1216,163.38,163.34,28.16]
[1746757128561,6.1216,163.38,163.34,34.2827]
[1746757128862,6.1216,163.38,163.34,28.16]
[1746757129063,6.1216,163.38,163.34,34.283]
[1746757129969,6.1216,163.38,163.35,6.1227]
[1746757130266,6.1219,163.37,163.33,28.16]
[1746757130461,28.36,163.42,163.33,28.16]
[1746757131562,28.36,163.42,163.31,32.2583]
[1746757131755,28.36,163.42,163.31,28.16]
[1746757132266,6.1233,163.34,163.31,28.16]
[1746757132463,28.14,163.37,163.31,28.16]
[1746757133266,6.1234,163.34,163.31,28.16]
[1746757133667,6.1235,163.33,163.31,28.16]
[1746757133962,6.1235,163.33,163.29,6.1247]
[1746757134259,6.1235,163.33,163.29,34.2847]
[1746757135069,28.14,163.37,163.28,37.85678469]
[1746757135365,28.14,163.37,163.28,28.16]
[1746757135771,6.1244,163.31,163.27,6.1257]
[1746757135969,6.1244,163.31,163.28,28.16]
[1746757136470,28.14,163.37,163.28,34.2853]
[1746757136471,6.1239,163.32,163.28,34.2853]
[1746757138571,6.1242,163.31,163.28,34.2853]
[1746757139571,28.14,163.37,163.28,28.16]
[1746757140571,28.14,163.37,163.28,34.2853]
[1746757140773,6.1245,163.31,163.28,28.16]
[1746757140973,28.14,163.37,163.28,28.16]
[1746757141870,6.1247,163.3,163.28,28.16]
[1746757142265,28.14,163.37,163.26,33.9562]
[1746757142478,6.1248,163.3,163.26,40.0822]
[1746757142665,28.16,163.33,163.26,40.0822]
[1746757142871,28.16,163.33,163.26,33.9562]
[1746757143068,28.16,163.33,163.26,5.7962]
[1746757143873,6.1249,163.3,163.26,11.9223]
[1746757145574,6.1243,163.31,163.27,6.1256]
[1746757147169,28.16,163.33,163.25,28.14]
[1746757147366,28.16,163.33,163.24,28.16]
[1746757147771,28.16,163.33,163.23,28.16]
[1746757147974,6.1256,163.28,163.24,6.1268]
[1746757148275,28.16,163.33,163.23,28.16]
[1746757148471,28.16,163.33,163.22,34.2873]
[1746757148675,28.16,163.33,163.23,28.16]